bitfinex/quotes_BTCUSD_20250408
["timestamp","ask_amount","ask_price","bid_price","bid_amount"]
[1744151903415,0.001,76287.0,76286.0,0.001]
[1744151903613,0.013107,76293.0,76282.0,0.013109]
[1744151903614,0.222839,76289.0,76282.0,0.013109]
[1744151903857,0.34,76294.0,76286.0,0.209737]
[1744151904117,0.209725,76291.0,76284.0,0.013108]
[1744151904328,0.013107,76293.0,76284.0,0.013108]
[1744151904329,0.353107,76292.0,76286.0,0.013108]
[1744151904526,0.006,76287.0,76286.0,0.013108]
[1744151904724,0.013105,76304.0,76291.0,0.22283]
[1744151904923,0.013104,76309.0,76298.0,0.209704]
[1744151905133,1.26124,76315.0,76304.0,0.209687]
[1744151905350,0.209657,76315.0,76310.0,0.013104]
[1744151905558,0.222763,76314.0,76308.0,0.209676]
[1744151905801,0.013103,76315.0,76308.0,0.22278]
[1744151906005,0.209657,76316.0,76311.0,0.209667]
[1744151906324,0.013104,76311.0,76303.0,0.013105]
[1744151906465,0.013104,76311.0,76305.0,0.04586926]
[1744151906660,0.222774,76311.0,76305.0,0.26865626]
[1744151906864,0.222774,76311.0,76305.0,0.2660355]
[1744151907116,0.222774,76311.0,76305.0,0.0563535]
[1744151907320,0.006,76315.0,76314.0,0.013103]
[1744151907552,0.006,76315.0,76314.0,0.01572356]
[1744151907732,0.013101,76330.0,76311.0,0.013104]
[1744151907733,0.013099,76340.0,76311.0,0.18976]
[1744151907952,0.222696,76337.0,76330.0,0.013101]
[1744151908146,0.013098,76346.0,76336.0,0.013099]
[1744151908283,0.013098,76342.0,76330.0,0.00261993]
[1744151908475,0.00262062,76349.0,76342.0,0.013098]
[1744151908680,0.00262062,76349.0,76343.0,0.02432359]
[1744151908681,0.013098,76347.0,76343.0,0.02432359]
[1744151908886,0.22267,76346.0,76343.0,0.02432359]
[1744151909090,0.353098,76345.0,76344.0,0.02432359]
[1744151909288,0.013098,76345.0,76344.0,0.02432359]
[1744151909499,0.55139616,76345.0,76344.0,5.9e-07]
[1744151909719,0.013102,76322.0,76309.0,0.209673]
[1744151909952,0.209652,76317.0,76312.0,0.12625864]
[1744151910308,0.209652,76317.0,76309.0,0.222777]
[1744151910508,0.222742,76321.0,76309.0,0.222777]
[1744151910509,0.209646,76320.0,76311.0,0.222772]
[1744151910854,0.013102,76320.0,76311.0,0.12625864]
[1744151911053,0.209657,76316.0,76311.0,0.12625864]
[1744151911256,0.209646,76319.0,76312.0,0.013104]
[1744151911462,0.013101,76329.0,76315.0,0.013103]
[1744151911689,0.209615,76331.0,76323.0,0.209635]
[1744151912046,0.209615,76331.0,76324.0,0.013102]
[1744151912400,0.209619,76329.0,76324.0,0.013102]
[1744151912595,0.20963,76325.0,76319.0,0.209646]
[1744151912899,0.209625,76327.0,76321.0,0.20964]
[1744151913096,0.209625,76327.0,76321.0,0.26170186]
[1744151913298,0.20962,76329.0,76322.0,0.222737]
[1744151913505,0.209625,76327.0,76320.0,0.12625864]
[1744151913715,0.209625,76327.0,76320.0,0.1611608]
[1744151913907,0.20964,76321.0,76320.0,0.1611608]
[1744151914284,0.20964,76321.0,76320.0,0.12625864]
[1744151914843,0.20964,76321.0,76310.0,0.209669]
[1744151914844,0.209654,76317.0,76310.0,0.222773]
[1744151915044,0.002,76329.0,76328.0,0.013101]
[1744151915196,0.002,76329.0,76328.0,0.14197937]
[1744151915399,0.002,76329.0,76324.0,0.258032]
[1744151915400,0.209624,76327.0,76324.0,0.0484]
[1744151915600,0.20964,76321.0,76320.0,0.001]
[1744151916342,0.001,76321.0,76320.0,0.001]
[1744151916528,0.209616,76330.0,76322.0,0.209635]
[1744151916761,0.20962,76329.0,76322.0,0.12625864]
[1744151916926,0.20962,76329.0,76322.0,0.33589464]
[1744151917122,0.209629,76326.0,76322.0,0.12625864]
[1744151917343,0.0131,76331.0,76323.0,0.013102]
[1744151917344,0.209617,76330.0,76323.0,0.013102]
[1744151917487,0.013099,76341.0,76330.0,0.209616]
[1744151917693,0.209607,76334.0,76328.0,0.20962]
[1744151917893,0.0131,76335.0,76327.0,0.013101]
[1744151918095,0.2227,76336.0,76322.0,0.12625864]
[1744151918096,0.209626,76327.0,76322.0,0.12625864]
[1744151918296,0.013102,76321.0,76312.0,0.209663]
[1744151918609,0.209638,76322.0,76317.0,0.222752]
[1744151919014,0.209637,76323.0,76315.0,0.222758]
[1744151919238,0.013102,76322.0,76306.0,0.209682]
[1744151919436,0.013102,76322.0,76299.0,0.19604]
[1744151919437,0.013103,76315.0,76309.0,0.209673]
[1744151919643,0.013103,76317.0,76309.0,0.34903564]
[1744151919840,0.013102,76322.0,76314.0,0.22276]
[1744151920137,0.209645,76320.0,76314.0,0.22276]
[1744151920336,0.209643,76321.0,76315.0,0.209654]
[1744151920538,0.222745,76321.0,76316.0,0.02171282]
[1744151920738,0.001,76317.0,76316.0,0.02171282]
[1744151921069,0.001,76317.0,76316.0,0.03481582]
[1744151921279,0.0131,76331.0,76325.0,0.209628]
[1744151921497,0.20961,76332.0,76326.0,0.222726]
[1744151921787,0.0131,76334.0,76326.0,0.013101]
[1744151921949,0.209612,76332.0,76327.0,0.013101]
[1744151922145,0.0131,76334.0,76328.0,0.222722]
[1744151922489,0.222698,76337.0,76327.0,0.013101]
[1744151922490,0.222702,76335.0,76329.0,0.013101]
[1744151922647,0.209607,76333.0,76327.0,0.21224204]
[1744151922995,0.0131,76331.0,76326.0,0.222725]
[1744151923187,0.209612,76332.0,76326.0,0.222725]
[1744151923385,0.222712,76332.0,76326.0,0.222725]
[1744151923688,0.222715,76331.0,76323.0,0.222736]
[1744151923872,0.0141,76332.0,76326.0,0.222725]
[1744151923873,0.001,76332.0,76326.0,0.222725]
[1744151924190,0.0131,76331.0,76324.0,0.0445476]
[1744151924385,0.222715,76331.0,76324.0,0.0445476]
[1744151924585,0.209628,76326.0,76324.0,0.0445476]
[1744151924786,0.15121404,76328.0,76323.0,0.001]
[1744151924931,0.222717,76330.0,76323.0,0.001]
[1744151924932,0.209632,76324.0,76323.0,0.001]
[1744151925337,0.222728,76326.0,76323.0,0.001]
[1744151925338,0.209627,76326.0,76323.0,0.001]
[1744151926094,0.003,76326.0,76323.0,0.001]
[1744151926391,0.209624,76327.0,76324.0,0.0446488]
[1744151926803,0.212628,76326.0,76324.0,0.0446488]
[1744151926970,0.209628,76326.0,76324.0,0.0446488]
[1744151927373,0.005,76326.0,76324.0,0.0446488]
[1744151927574,0.002,76326.0,76324.0,0.27000094]
[1744151927760,0.0131,76331.0,76325.0,0.02396992]
[1744151927961,0.222714,76331.0,76326.0,0.00262005]
[1744151928183,0.222718,76330.0,76325.0,0.02659002]
[1744151928383,0.002,76326.0,76325.0,0.24669992]
[1744151928544,0.002,76326.0,76325.0,0.02396992]
[1744151928951,0.006,76326.0,76325.0,0.02396992]
[1744151929402,0.20962,76329.0,76325.0,0.02396992]
[1744151929603,0.004,76326.0,76325.0,0.02396992]
[1744151929814,0.004,76326.0,76325.0,0.013101]
[1744151930451,0.00262062,76331.0,76295.0,0.047]
[1744151930706,0.00262062,76331.0,76280.0,0.20933781]
[1744151930707,0.222859,76281.0,76280.0,0.01333781]
[1744151930909,0.013112,76261.0,76256.0,0.209818]
[1744151931099,0.209794,76266.0,76259.0,0.209811]
[1744151931311,0.209794,76266.0,76251.0,0.013114]
[1744151931312,0.01317772,76283.0,76281.0,0.013109]
[1744151931481,0.34,76288.0,76283.0,0.209745]
[1744151931685,0.34,76288.0,76282.0,0.013109]
[1744151931911,0.222824,76294.0,76282.0,0.013109]
[1744151931912,0.013107,76294.0,76286.0,0.013108]
[1744151932101,0.34,76292.0,76286.0,0.222843]
[1744151932309,0.34,76292.0,76287.0,0.013108]
[1744151932502,0.013107,76291.0,76286.0,0.222843]
[1744151932704,0.34,76292.0,76288.0,0.222838]
[1744151932914,0.013106,76299.0,76291.0,0.013107]
[1744151933111,0.209717,76294.0,76289.0,0.013108]
[1744151933336,0.353107,76295.0,76289.0,0.013108]
[1744151933458,0.353107,76295.0,76288.0,0.013108]
[1744151933459,0.007,76292.0,76287.0,0.222841]
[1744151933659,0.34,76295.0,76288.0,0.0458795]
[1744151933894,0.005,76292.0,76286.0,0.00262143]
[1744151934095,0.005,76292.0,76281.0,0.01573041]
[1744151934301,0.209737,76286.0,76281.0,0.01573041]
[1744151934495,0.209737,76286.0,76281.0,0.00262141]
[1744151934817,0.209748,76282.0,76281.0,0.00262141]
[1744151934958,0.209748,76282.0,76275.0,0.01311]
[1744151935314,0.013107,76291.0,76260.0,0.995]
[1744151935315,0.209782,76270.0,76262.0,0.013112]
[1744151935510,0.013109,76279.0,76267.0,0.2229]
[1744151935511,0.209761,76277.0,76267.0,0.2229]
[1744151935713,0.209773,76273.0,76268.0,0.12625864]
[1744151936098,0.01311,76272.0,76256.0,0.209818]
[1744151936265,0.209799,76264.0,76256.0,0.013113]
[1744151936467,0.209799,76264.0,76258.0,0.013113]
[1744151936669,0.209792,76266.0,76261.0,0.209805]
[1744151936868,0.209792,76266.0,76260.0,1.008113]
[1744151937093,0.209792,76266.0,76260.0,1.217918]
[1744151937295,0.013112,76261.0,76260.0,0.995]
[1744151937491,0.14199126,76261.0,76260.0,0.995]
[1744151937697,0.48199126,76261.0,76260.0,0.995]
[1744151937927,0.57790881,76261.0,76260.0,0.995]
[1744151938084,0.47937064,76261.0,76260.0,0.995]
[1744151938288,0.47937064,76261.0,76260.0,0.73474892]
[1744151939369,0.48837064,76261.0,76260.0,0.73474892]
[1744151939804,0.49737064,76261.0,76260.0,0.73474892]
[1744151940874,0.49737064,76261.0,76260.0,0.0573892]
[1744151941457,0.358,76261.0,76260.0,0.0573892]
[1744151941662,0.371112,76261.0,76260.0,0.0573892]
[1744151942000,0.018,76261.0,76260.0,0.0705022]
[1744151942205,0.018,76261.0,76260.0,0.06732439]
[1744151942452,0.018,76261.0,76260.0,0.20931826]
[1744151942571,0.018,76261.0,76260.0,0.19358303]
[1744151942778,0.227805,76261.0,76260.0,0.06732439]
[1744151943021,0.227805,76261.0,76260.0,0.0573892]
[1744151943022,0.209805,76261.0,76260.0,0.0573892]
[1744151943244,0.013109,76281.0,76262.0,0.013112]
[1744151943419,1.098415,76306.0,76263.0,0.00262203]
[1744151943420,0.209778,76271.0,76263.0,0.00262203]
[1744151943626,0.209785,76269.0,76262.0,0.12625864]
[1744151943993,0.209781,76270.0,76263.0,0.2098]
[1744151944180,0.209781,76270.0,76263.0,0.222912]
[1744151944380,0.209757,76280.0,76265.0,0.209794]
[1744151944596,0.001,76261.0,76260.0,0.0573892]
[1744151944931,0.001,76261.0,76260.0,0.0583892]
[1744151945132,0.001,76261.0,76260.0,0.0573892]
[1744151945341,0.001,76261.0,76260.0,0.24708656]
[1744151945708,0.20977,76274.0,76264.0,0.222908]
[1744151946046,0.209778,76271.0,76265.0,0.12625864]
[1744151946485,0.209786,76268.0,76260.0,0.12082792]
[1744151946607,0.209786,76268.0,76261.0,0.018293]
[1744151946813,0.209795,76265.0,76261.0,0.018293]
[1744151947059,0.20979,76267.0,76261.0,0.018293]
[1744151948130,0.20979,76267.0,76261.0,0.209805]
[1744151948301,0.20979,76267.0,76260.0,0.19676084]
[1744151948443,0.002,76267.0,76266.0,0.222904]
[1744151948649,0.209738,76286.0,76266.0,0.222904]
[1744151948650,0.013106,76296.0,76282.0,0.013109]
[1744151948850,0.34,76287.0,76279.0,0.01573072]
[1744151949048,0.209727,76290.0,76281.0,0.013109]
[1744151949257,0.0259396,76299.0,76289.0,0.222835]
[1744151949258,0.0128336,76299.0,76289.0,0.222835]
[1744151949455,0.013106,76297.0,76284.0,0.013108]
[1744151949678,0.013107,76295.0,76284.0,0.013108]
[1744151949911,0.006,76287.0,76286.0,0.013108]
[1744151950114,0.209742,76284.0,76277.0,0.01311]
[1744151950352,0.006,76287.0,76286.0,0.222845]
[1744151950466,0.0491,76337.0,76303.0,0.20969]
[1744151950467,0.013103,76314.0,76303.0,0.20969]
[1744151950673,0.013103,76314.0,76292.0,0.222827]
[1744151950674,0.013105,76303.0,76292.0,0.222827]
[1744151950923,0.013104,76308.0,76294.0,0.222822]
[1744151950924,0.003,76297.0,76294.0,0.222822]
[1744151951124,0.003,76297.0,76296.0,0.013106]
[1744151951329,0.003,76297.0,76296.0,0.13936464]
[1744151951982,0.013102,76321.0,76296.0,0.13936464]
[1744151951983,0.222721,76329.0,76317.0,0.013103]
[1744151952225,0.222721,76329.0,76296.0,0.12625864]
[1744151952226,0.209587,76341.0,76333.0,0.0131]
[1744151952433,0.013098,76342.0,76333.0,0.0131]
[1744151952574,0.11588944,76369.0,76335.0,0.0131]
[1744151952769,0.11588944,76369.0,76314.0,0.314488]
[1744151952770,0.22266,76349.0,76343.0,0.013098]
[1744151953013,0.013098,76344.0,76338.0,0.013099]
[1744151953213,0.013099,76338.0,76329.0,0.013101]
[1744151953389,0.013097,76351.0,76339.0,0.013099]
[1744151953592,0.013097,76351.0,76343.0,0.013098]
[1744151953906,0.231661,76349.0,76341.0,0.209585]
[1744151954107,0.009,76349.0,76348.0,0.209566]
[1744151954450,0.009,76349.0,76348.0,0.222663]
[1744151954776,0.009,76349.0,76348.0,0.34892164]
[1744151955215,0.1420892,76369.0,76362.0,0.209528]
[1744151955414,0.1420892,76369.0,76361.0,0.013095]
[1744151955415,0.222605,76368.0,76361.0,0.013095]
[1744151955655,0.013094,76366.0,76356.0,0.209543]
[1744151955932,0.222605,76368.0,76351.0,0.013097]
[1744151955933,0.222638,76357.0,76351.0,0.013097]
[1744151956078,0.013096,76357.0,76346.0,0.22267]
[1744151956279,0.65418719,76361.0,76346.0,0.22267]
[1744151956280,0.013097,76353.0,76347.0,0.209568]
[1744151956530,0.013097,76353.0,76348.0,0.013097]
[1744151957048,0.22264,76356.0,76350.0,0.013097]
[1744151957342,0.22264,76356.0,76346.0,0.013098]
[1744151957343,0.013098,76345.0,76333.0,0.0131]
[1744151957641,0.222682,76342.0,76337.0,0.222695]
[1744151957851,0.013098,76342.0,76334.0,0.222705]
[1744151957998,0.222692,76339.0,76334.0,0.222705]
[1744151958199,0.013099,76339.0,76334.0,0.222705]
[1744151958400,0.013099,76340.0,76334.0,0.222705]
[1744151959133,0.013098,76345.0,76334.0,0.222705]
[1744151959134,0.56266,76350.0,76341.0,0.013099]
[1744151959332,0.013097,76348.0,76336.0,0.013099]
[1744151959502,0.209571,76347.0,76336.0,0.013099]
[1744151959859,0.222687,76341.0,76336.0,0.013099]
[1744151960150,0.222681,76342.0,76336.0,0.013099]
[1744151960360,0.013098,76343.0,76339.0,0.209591]
[1744151960560,0.34,76350.0,76345.0,0.222671]
[1744151960758,0.56266,76350.0,76344.0,0.013098]
[1744151960977,0.353097,76348.0,76342.0,0.013098]
[1744151961100,0.222668,76347.0,76342.0,0.013098]
[1744151961595,0.004,76343.0,76341.0,0.222682]
[1744151961772,0.013098,76346.0,76341.0,0.222682]
[1744151962990,0.006,76347.0,76346.0,0.209572]
[1744151963191,0.006,76347.0,76345.0,0.013098]
[1744151963392,0.006,76347.0,76346.0,0.22267]
[1744151963547,0.006,76347.0,76346.0,0.34892864]
[1744151963749,0.013095,76365.0,76355.0,0.013096]
[1744151963750,0.34,76365.0,76355.0,0.013096]
[1744151964119,0.34,76363.0,76355.0,0.013096]
[1744151964309,0.34,76363.0,76357.0,0.013096]
[1744151964510,0.222603,76370.0,76362.0,0.013095]
[1744151964716,0.222603,76370.0,76363.0,0.222619]
[1744151964892,0.013094,76370.0,76363.0,0.222619]
[1744151965095,0.562602,76370.0,76363.0,0.222619]
[1744151965296,0.013094,76368.0,76362.0,0.013095]
[1744151965507,0.222607,76368.0,76363.0,0.013095]
[1744151965706,0.353094,76368.0,76363.0,0.222618]
[1744151965906,0.34,76368.0,76364.0,0.222615]
[1744151966433,0.009,76368.0,76364.0,0.013095]
[1744151966742,0.231608,76368.0,76363.0,0.22262]
[1744151967090,0.022094,76368.0,76363.0,0.22262]
[1744151967491,0.013094,76368.0,76363.0,0.22262]
[1744151967891,0.031094,76368.0,76363.0,0.22262]
[1744151968362,0.022094,76368.0,76363.0,0.22262]
[1744151968548,0.009,76368.0,76364.0,0.222615]
[1744151968751,0.018,76368.0,76364.0,0.222615]
[1744151969175,0.013095,76362.0,76353.0,0.20955]
[1744151969366,0.013095,76362.0,76331.0,1.0382]
[1744151969367,0.013095,76361.0,76355.0,0.22264]
[1744151969541,0.209535,76360.0,76356.0,0.209543]
[1744151970525,0.22296739,76369.0,76364.0,0.013095]
[1744151970662,0.009,76368.0,76361.0,0.013095]
[1744151970867,0.009,76368.0,76363.0,0.209523]
[1744151971062,0.009,76368.0,76362.0,0.23786696]
[1744151971249,0.23606239,76369.0,76362.0,0.23786696]
[1744151971447,0.23606239,76369.0,76362.0,0.222622]
[1744151971680,0.222607,76368.0,76362.0,0.222622]
[1744151972075,0.222607,76368.0,76357.0,0.12625864]
[1744151972076,0.209524,76364.0,76357.0,0.209539]
[1744151972278,0.222619,76364.0,76357.0,0.209539]
[1744151972533,0.00262062,76367.0,76357.0,0.209539]
[1744151972534,0.209516,76367.0,76361.0,0.209528]
[1744151972810,0.009,76368.0,76367.0,0.013094]
[1744151973217,0.018,76368.0,76365.0,0.222613]
[1744151973414,0.018,76368.0,76367.0,0.209514]
[1744151973563,0.009,76368.0,76367.0,0.222608]
[1744151973999,0.209495,76374.0,76370.0,0.209504]
[1744151974686,0.22235677,76374.0,76370.0,0.209504]
[1744151975086,0.23135677,76374.0,76370.0,0.209504]
[1744151975704,0.02186177,76374.0,76371.0,0.209501]
[1744151975907,0.02186177,76374.0,76371.0,0.222594]
[1744151976147,0.009,76374.0,76373.0,0.013093]
[1744151976267,0.009,76374.0,76373.0,0.13935164]
[1744151976621,0.018,76374.0,76373.0,0.13935164]
[1744151976827,0.009,76374.0,76373.0,0.13935164]
[1744151976974,0.009,76374.0,76373.0,0.16344426]
[1744151977182,0.013089,76397.0,76391.0,0.209448]
[1744151977389,0.013089,76397.0,76390.0,0.01309]
[1744151977390,0.00262062,76399.0,76397.0,0.209432]
[1744151977592,0.00262062,76399.0,76387.0,0.013091]
[1744151977593,0.20938,76416.0,76409.0,0.013087]
[1744151977794,0.013086,76412.0,76405.0,0.013088]
[1744151978008,0.01287096,76412.0,76408.0,0.222489]
[1744151978220,0.222477,76412.0,76406.0,0.222493]
[1744151978448,0.222439,76426.0,76415.0,0.20938]
[1744151978658,0.013084,76425.0,76419.0,0.013085]
[1744151978871,0.013085,76421.0,76415.0,0.013086]
[1744151979087,0.01789004,76424.0,76419.0,0.013085]
[1744151979297,0.01789004,76424.0,76418.0,0.222458]
[1744151979298,0.03097404,76424.0,76418.0,0.222458]
[1744151979511,0.209361,76423.0,76418.0,0.222458]
[1744151979728,0.209361,76423.0,76416.0,0.013086]
[1744151979729,0.22245,76422.0,76417.0,0.209377]
[1744151979935,0.231453,76421.0,76416.0,0.013086]
[1744151980137,0.009,76421.0,76417.0,0.222461]
[1744151980354,0.03097404,76424.0,76418.0,0.222457]
[1744151980559,0.009,76423.0,76420.0,0.222454]
[1744151980896,0.013085,76422.0,76417.0,0.013086]
[1744151981122,0.009,76423.0,76421.0,0.22245]
[1744151981331,0.009,76423.0,76422.0,0.013085]
[1744151981462,0.009,76423.0,76422.0,0.13934364]
[1744151981912,0.009,76423.0,76422.0,0.16366587]
[1744151982616,0.00500069,76424.0,76423.0,0.222446]
[1744151982796,0.00500069,76424.0,76423.0,0.37541364]
[1744151983120,0.00500069,76424.0,76423.0,0.39711949]
[1744151983322,0.00500069,76424.0,76423.0,0.40925682]
[1744151983479,0.00500069,76424.0,76423.0,0.74925682]
[1744151984081,0.00900069,76424.0,76423.0,0.40925682]
[1744151984555,0.01000069,76424.0,76423.0,0.40925682]
[1744151984993,0.01000069,76424.0,76423.0,0.59957682]
[1744151985957,0.01000069,76424.0,76423.0,0.58743949]
[1744151987537,0.01000069,76424.0,76423.0,0.56311726]
[1744151992193,0.02308469,76424.0,76417.0,0.222461]
[1744151992332,0.02308469,76424.0,76418.0,0.13934364]
[1744151992538,0.02308469,76424.0,76412.0,0.013086]
[1744151992539,0.222457,76419.0,76412.0,0.013086]
[1744151992952,0.222457,76419.0,76412.0,0.222474]
[1744151993152,0.209368,76421.0,76414.0,0.013086]
[1744151993394,0.22245,76422.0,76417.0,0.002]
[1744151993942,0.209368,76421.0,76417.0,0.002]
[1744151994157,0.222453,76421.0,76416.0,0.222463]
[1744151994641,0.22245,76422.0,76417.0,0.222461]
[1744151995701,0.013085,76420.0,76415.0,0.222467]
[1744151995885,0.209376,76418.0,76412.0,0.226475]
[1744151996066,0.013085,76419.0,76383.0,0.41894]
[1744151996067,0.013087,76410.0,76404.0,0.209411]
[1744151996298,0.209401,76409.0,76405.0,0.03356696]
[1744151996506,0.209386,76415.0,76405.0,0.03356696]
[1744151996507,0.014085,76422.0,76418.0,0.209373]
[1744151996825,0.013085,76420.0,76416.0,0.003]
[1744151996966,0.209373,76419.0,76413.0,0.013086]
[1744151997166,0.013086,76416.0,76410.0,0.209395]
[1744151997367,0.209373,76419.0,76411.0,0.04926976]
[1744151997568,0.222449,76422.0,76416.0,0.209379]
[1744151997767,0.013085,76418.0,76411.0,0.209391]
[1744151998009,0.222463,76417.0,76413.0,0.001]
[1744151998217,0.209385,76414.0,76413.0,0.001]
[1744151998388,0.222471,76414.0,76413.0,0.001]
[1744151999327,0.209382,76415.0,76413.0,0.001]
[1744151999549,0.013086,76415.0,76410.0,0.222481]
[1744151999677,0.013086,76415.0,76411.0,0.002]
[1744151999931,0.209371,76420.0,76415.0,0.013086]
[1744152000177,0.222463,76417.0,76412.0,0.013086]
[1744152000373,0.002,76414.0,76413.0,0.013086]
[1744152000732,0.003,76415.0,76414.0,0.222471]
[1744152000928,0.003,76415.0,76413.0,0.013086]
[1744152001173,0.013085,76420.0,76407.0,0.209403]
[1744152001174,0.013086,76412.0,76407.0,0.209403]
[1744152001378,0.40124798,76420.0,76413.0,0.013086]
[1744152001551,0.40124798,76440.0,76378.0,1.052408]
[1744152001552,0.222431,76429.0,76423.0,0.013085]
[1744152001770,0.209318,76439.0,76423.0,0.013085]
[1744152002091,0.209327,76436.0,76423.0,0.01570194]
[1744152002303,0.209333,76434.0,76423.0,0.013085]
[1744152002447,0.209327,76436.0,76423.0,0.013085]
[1744152002637,0.222413,76435.0,76423.0,0.013085]
[1744152002839,0.209332,76434.0,76423.0,0.013085]
[1744152003155,0.01600069,76424.0,76423.0,0.013085]
[1744152003735,0.01600069,76424.0,76413.0,0.013086]
[1744152003736,0.209365,76422.0,76413.0,0.013086]
[1744152003943,0.02908469,76424.0,76416.0,0.0243465]
[1744152004178,0.209365,76422.0,76416.0,0.0243465]
[1744152004385,0.209377,76417.0,76416.0,0.0243465]
[1744152004582,0.222474,76413.0,76412.0,0.01217325]
[1744152005099,0.209392,76412.0,76407.0,0.209403]
[1744152005453,0.209394,76411.0,76406.0,0.222493]
[1744152005863,0.013089,76396.0,76389.0,0.1856]
[1744152006167,0.222535,76393.0,76389.0,0.209453]
[1744152006371,0.013088,76404.0,76398.0,0.222517]
[1744152006482,0.222511,76401.0,76396.0,0.013089]
[1744152006686,0.222517,76399.0,76394.0,0.222528]
[1744152006889,0.00262062,76403.0,76395.0,0.0589048]
[1744152007127,0.1856,76411.0,76410.0,0.013087]
[1744152007302,0.43096593,76427.0,76415.0,0.013086]
[1744152007303,0.222454,76421.0,76415.0,0.013086]
[1744152007517,0.013085,76419.0,76414.0,0.222471]
[1744152007695,0.013085,76421.0,76416.0,0.222464]
[1744152008027,0.013085,76421.0,76409.0,0.222484]
[1744152008028,0.013085,76420.0,76409.0,0.222484]
[1744152008233,0.013086,76416.0,76410.0,0.013087]
[1744152008428,0.013086,76417.0,76412.0,0.013086]
[1744152008812,0.222463,76417.0,76412.0,0.013086]
[1744152009021,0.013086,76413.0,76406.0,0.222493]
[1744152009218,0.209414,76404.0,76400.0,0.013089]
[1744152009419,0.013088,76404.0,76397.0,0.013089]
[1744152009618,0.01337012,76413.0,76407.0,0.013087]
[1744152009917,0.222488,76409.0,76402.0,0.013088]
[1744152010273,0.222477,76412.0,76406.0,0.002]
[1744152010676,0.209395,76411.0,76406.0,0.002]
[1744152010823,0.209395,76411.0,76406.0,0.209405]
[1744152011020,0.01295153,76413.0,76406.0,0.013087]
[1744152011208,0.61061698,76420.0,76412.0,0.209391]
[1744152011407,0.209369,76420.0,76413.0,0.209388]
[1744152011625,0.013086,76415.0,76409.0,0.209397]
[1744152011829,0.013086,76412.0,76407.0,0.013087]
[1744152012042,0.01317617,76413.0,76409.0,0.013087]
[1744152012237,0.013086,76413.0,76408.0,0.209402]
[1744152012471,0.013087,76409.0,76405.0,0.209408]
[1744152012649,0.222485,76410.0,76405.0,0.209408]
[1744152012950,0.222488,76409.0,76407.0,0.001]
[1744152013308,0.013086,76412.0,76407.0,0.001]
[1744152013440,0.209393,76412.0,76408.0,0.013087]
[1744152013875,0.001,76410.0,76408.0,0.013087]
[1744152014043,0.001,76410.0,76408.0,0.222486]
[1744152014251,0.001,76410.0,76409.0,0.013087]
[1744152014968,0.005,76410.0,76409.0,0.01570426]
[1744152015165,0.004,76410.0,76409.0,0.13934564]
[1744152015313,0.004,76410.0,76409.0,0.14196265]
[1744152015507,0.009,76410.0,76409.0,0.13934564]
[1744152015717,0.003,76412.0,76411.0,0.013087]
[1744152015958,0.00500069,76424.0,76423.0,0.013085]
[1744152016117,0.00500069,76424.0,76423.0,0.222446]
[1744152016467,0.00500069,76424.0,76423.0,0.35132122]
[1744152016768,0.00500069,76424.0,76423.0,0.37314355]
[1744152016907,0.00500069,76424.0,76423.0,0.38536359]
[1744152018559,0.00600069,76424.0,76423.0,0.38536359]
[1744152018760,0.01300069,76424.0,76423.0,0.38536359]
[1744152018923,0.00600069,76424.0,76423.0,0.38536359]
[1744152019347,0.00500069,76424.0,76423.0,0.38536359]
[1744152019516,0.00500069,76424.0,76423.0,0.45398231]
[1744152019721,0.00600069,76424.0,76423.0,0.39036359]
[1744152020122,0.00500069,76424.0,76423.0,0.38536359]
[1744152020674,6.9e-07,76424.0,76423.0,0.49860444]
[1744152021347,0.222317,76467.0,76461.0,0.209255]
[1744152021493,0.222334,76462.0,76455.0,0.209273]
[1744152021711,0.013078,76460.0,76455.0,0.209273]
[1744152021939,0.01281637,76462.0,76459.0,0.209262]
[1744152022074,0.198677,76469.0,76461.0,0.013078]
[1744152022281,0.013077,76467.0,76460.0,0.222335]
[1744152022704,0.013077,76467.0,76425.0,0.34]
[1744152022705,0.01308,76452.0,76425.0,0.34]
[1744152022913,0.01308,76450.0,76444.0,0.222384]
[1744152023169,0.222369,76450.0,76444.0,0.222384]
[1744152023329,0.013081,76442.0,76436.0,0.209324]
[1744152023552,0.209314,76441.0,76435.0,0.222408]
[1744152023753,0.222395,76441.0,76435.0,0.222408]
[1744152023929,0.23529879,76444.0,76437.0,0.013082]
[1744152024127,0.209328,76436.0,76430.0,0.222422]
[1744152024327,0.013082,76438.0,76431.0,0.013083]
[1744152024570,0.013082,76438.0,76436.0,0.001]
[1744152024988,0.013082,76438.0,76431.0,0.013083]
[1744152025166,0.013082,76438.0,76437.0,0.001]
[1744152025367,0.013082,76438.0,76431.0,0.013083]
[1744152025538,0.01333338,76444.0,76431.0,0.02185926]
[1744152025721,0.34,76449.0,76431.0,0.02185926]
[1744152025937,0.00262062,76448.0,76431.0,0.01785926]
[1744152026345,0.001,76438.0,76437.0,0.001]
[1744152026806,0.014082,76438.0,76437.0,0.001]
[1744152027007,0.01670262,76438.0,76437.0,0.001]
[1744152027147,0.209407,76407.0,76400.0,0.222512]
[1744152027359,0.013087,76410.0,76404.0,0.013088]
[1744152027712,0.013087,76410.0,76405.0,0.222496]
[1744152027853,0.013087,76410.0,76400.0,0.222512]
[1744152027854,0.209431,76398.0,76387.0,0.209458]
[1744152028057,0.01309,76394.0,76388.0,0.0308158]
[1744152028306,0.01309,76393.0,76386.0,0.222551]
[1744152028534,0.01309,76392.0,76386.0,0.013091]